fUSD/lending_fUSD_20250826
["ID","MTS","AMOUNT","RATE_DAILY","PERIOD"]
[381479702,1756230681159,-484.19,0.00027397,5]
[381479703,1756230681168,-190.628852,0.00027397,7]
[381479704,1756230681178,-151.0,0.00027397,7]
[381479705,1756230681189,-195.588872,0.00027397,7]
[381479706,1756230681198,-570.489081,0.00027397,7]
[381479707,1756230681208,-797.42,0.00027397,5]
[381479708,1756230681218,-400.0,0.00027397,5]
[381479709,1756230681227,-737.11,0.00027397,5]
[381479710,1756230681238,-151.0,0.00027397,7]
[381479711,1756230681249,-703.79,0.00027397,5]
[381479712,1756230681259,-680.36,0.00027397,5]
[381479713,1756230681269,-151.0,0.00027397,7]
[381479714,1756230681279,-1575.39,0.00027397,5]
[381479715,1756230681288,-190.628852,0.00027397,7]
[381479716,1756230681297,-672.12,0.00027397,5]
[381479717,1756230681306,-400.0,0.00027397,5]
[381479718,1756230681315,-151.0,0.00027397,7]
[381479719,1756230681324,-151.0,0.00027397,7]
[381479720,1756230681333,-234.169077,0.00027397,7]
[381479721,1756230681342,-151.0,0.00027397,7]
[381479722,1756230681352,-190.628852,0.00027397,7]
[381479723,1756230681361,-759.87,0.00027397,5]
[381479724,1756230681370,-926.18,0.00027397,5]
[381479725,1756230681379,-400.0,0.00027397,5]
[381479726,1756230681389,-336.675498,0.00027397,7]
[381479727,1756230681398,-400.0,0.00027397,5]
[381479728,1756230681408,-400.0,0.00027397,5]
[381479729,1756230681417,-151.931186,0.00027397,7]
[381479730,1756230681426,-234.169077,0.00027397,7]
[381479731,1756230681436,-403.670401,0.00027397,7]
[381479732,1756230681446,-151.0,0.00027397,7]
[381479733,1756230681456,-862.99,0.00027397,5]
[381479734,1756230681465,-618.83,0.00027397,5]
[381479735,1756230681474,-336.675498,0.00027397,7]
[381479736,1756230681484,-403.670401,0.00027397,7]
[381479737,1756230681493,-234.169077,0.00027397,7]
[381479738,1756230681502,-151.0,0.00027397,7]
[381479739,1756230681511,-1447.2,0.00027397,5]
[381479740,1756230681520,-400.0,0.00027397,5]
[381479741,1756230681530,-336.675498,0.00027397,7]
[381479742,1756230681539,-400.0,0.00027397,5]
[381479743,1756230681548,-1075.04,0.00027397,5]
[381479744,1756230681558,-403.670401,0.00027397,7]
[381479745,1756230681567,-234.169077,0.00027397,7]
[381479746,1756230681577,-1260.62,0.00027397,5]
[381479747,1756230681587,-254.450508,0.00027397,7]
[381479748,1756230681596,-618.838378,0.00027397,7]
[381479749,1756230681605,-336.675498,0.00027397,7]
[381479750,1756230681614,-403.670401,0.00027397,7]
[381479751,1756230681624,-575.53,0.00027397,5]
[381479752,1756230681633,-618.838378,0.00027397,7]
[381479753,1756230681644,-400.0,0.00027397,5]
[381479754,1756230681659,-489.17,0.00027397,5]
[381479755,1756230681668,-845.06,0.00027397,5]
[381479756,1756230681677,-1238.05,0.00027397,5]
[381479757,1756230681687,-1102.7,0.00027397,5]
[381479758,1756230681696,-400.0,0.00027397,5]
[381479759,1756230681706,-618.838378,0.00027397,7]
[381479760,1756230681715,-400.0,0.00027397,5]
[381479761,1756230681724,-500.0,0.00027397,10]
[381479762,1756230681734,-1359.79,0.00027397,5]
[381479763,1756230681744,-820.48,0.00027397,5]
[381479764,1756230681753,-1712.23,0.00027397,5]
[381479765,1756230681763,-1138.32,0.00027397,5]
[381479766,1756230681772,-618.838378,0.00027397,7]
[381479767,1756230681781,-218.939648,0.00027397,7]
[381479768,1756230681791,-400.0,0.00027397,5]
[381479769,1756230681801,-717.51,0.00027397,5]
[381479770,1756230681811,-218.939648,0.00027397,7]
[381479771,1756230681820,-690.59,0.00027397,5]
[381479772,1756230681830,-218.939648,0.00027397,7]
[381479773,1756230681839,-400.0,0.00027397,5]
[381479774,1756230681848,-400.0,0.00027397,5]
[381479775,1756230681858,-218.939648,0.00027397,7]
[381479776,1756230681868,-400.0,0.00027397,5]
[381479777,1756230681877,-702.95,0.00027397,5]
[381479778,1756230681887,-400.0,0.00027397,5]
[381479779,1756230681896,-157.197571,0.00027397,7]
[381479780,1756230681905,-400.0,0.00027397,5]
[381479781,1756230681916,-1643.75,0.00027397,5]
[381479782,1756230681925,-956.27,0.00027397,5]
[381479783,1756230681937,-400.0,0.00027397,5]
[381479784,1756230681948,-157.197571,0.00027397,7]
[381479785,1756230681958,-1080.95,0.00027397,5]
[381479786,1756230681968,-400.0,0.00027397,5]
[381479787,1756230681979,-704.75,0.00027397,5]
[381479788,1756230681990,-400.0,0.00027397,5]
[381479789,1756230682000,-1188.76,0.00027397,5]
[381479790,1756230682011,-830.28,0.00027397,5]
[381479791,1756230682020,-157.197571,0.00027397,7]
[381479792,1756230682030,-903.37,0.00027397,5]
[381479793,1756230682040,-884.15,0.00027397,5]
[381479794,1756230682052,-4381.4,0.00027397,5]
[381479795,1756230682061,-883.77,0.00027397,5]
[381479796,1756230682070,-157.197571,0.00027397,7]
[381479797,1756230682080,-1272.98,0.00027397,5]
[381479798,1756230682089,-400.0,0.00027397,5]
[381479799,1756230682098,-400.0,0.00027397,5]
[381479800,1756230682107,-530.70808298,0.00027397,5]
[381479801,1756230682117,-400.0,0.00027397,5]
[381479802,1756230682126,-400.0,0.00027397,5]
[381479803,1756230682136,-1035.82,0.00027397,5]
[381479804,1756230682145,-440.04,0.00027397,5]
[381479805,1756230682154,-588.09,0.00027397,5]
[381479806,1756230682164,-1060.85,0.00027397,5]
[381479807,1756230682174,-452.273707,0.00027397,7]
[381479808,1756230682183,-151.0,0.00027397,7]
[381479809,1756230682198,-729.67,0.00027397,5]
[381479810,1756230682207,-151.0,0.00027397,7]
[381479811,1756230682216,-734.09,0.00027397,5]
[381479812,1756230682226,-452.273707,0.00027397,7]
[381479813,1756230682235,-400.0,0.00027397,5]
[381479814,1756230682244,-818.36,0.00027397,5]
[381479815,1756230682254,-452.273707,0.00027397,7]
[381479816,1756230682263,-151.0,0.00027397,7]
[381479817,1756230682273,-400.0,0.00027397,5]
[381479818,1756230682282,-452.273707,0.00027397,7]
[381479819,1756230682292,-1343.19,0.00027397,5]
[381479820,1756230682301,-151.0,0.00027397,7]
[381479821,1756230682312,-1006.17,0.00027397,5]
[381479822,1756230682322,-400.0,0.00027397,5]
[381479823,1756230682331,-752.5,0.00027397,5]
[381479824,1756230682341,-151.0,0.00027397,7]
[381479825,1756230682351,-151.0,0.00027397,7]
[381479826,1756230682360,-692.436487,0.00027397,7]
[381479827,1756230682370,-1000.26,0.00027397,5]
[381479828,1756230682380,-400.0,0.00027397,5]
[381479829,1756230682390,-400.0,0.00027397,5]
[381479830,1756230682399,-226.883424,0.00027397,7]
[381479831,1756230682409,-1006.41,0.00027397,5]
[381479832,1756230682418,-692.436487,0.00027397,7]
[381479833,1756230682428,-1229.66,0.00027397,5]
[381479834,1756230682439,-927.58,0.00027397,5]
[381479835,1756230682451,-500.0,0.00027397,5]
[381479836,1756230682462,-500.0,0.00027397,5]
[381479837,1756230682473,-692.436487,0.00027397,7]
[381479838,1756230682483,-465.25,0.00027397,5]
[381479839,1756230682495,-500.0,0.00027397,5]
[381479840,1756230682506,-500.0,0.00027397,5]
[381479841,1756230682516,-819.77,0.00027397,5]
[381479842,1756230682527,-574.94,0.00027397,5]
[381479843,1756230682538,-500.0,0.00027397,5]
[381479844,1756230682548,-500.0,0.00027397,5]
[381479845,1756230682558,-1087.43,0.00027397,5]
[381479846,1756230682568,-500.0,0.00027397,5]
[381479847,1756230682578,-400.0,0.00027397,5]
[381479848,1756230682587,-692.436487,0.00027397,7]
[381479849,1756230682596,-209.24012142,0.00027397,5]
[381479850,1756230682606,-151.0,0.00027397,7]
[381479851,1756230682615,-1561.08,0.00027397,5]
[381479852,1756230682624,-605.76,0.00027397,5]
[381479853,1756230682634,-151.0,0.00027397,7]
[381479854,1756230682643,-633.29,0.00027397,5]
[381479855,1756230682656,-673.66,0.00027397,5]
[381479856,1756230682666,-1303.8,0.00027397,5]
[381479857,1756230682675,-155.812183,0.00027397,7]
[381479858,1756230682685,-380.392524,0.00027397,7]
[381479859,1756230682696,-951.85,0.00027397,5]
[381479860,1756230682705,-182.378069,0.00027397,7]
[381479861,1756230682715,-727.97,0.00027397,5]
[381479862,1756230682724,-380.392524,0.00027397,7]
[381479863,1756230682736,-151.0,0.00027397,7]
[381479864,1756230682746,-182.378069,0.00027397,7]
[381479865,1756230682755,-380.392524,0.00027397,7]
[381479866,1756230682765,-400.0,0.00027397,5]
[381479867,1756230682774,-182.378069,0.00027397,7]
[381479868,1756230682784,-571.48015064,0.00027397,2]
[381479869,1756230682794,-761.39,0.00027397,5]
[381479870,1756230682804,-823.04,0.00027397,5]
[381479871,1756230682815,-151.0,0.00027397,7]
[381479872,1756230682826,-995.91,0.00027397,5]
[381479873,1756230682836,-380.392524,0.00027397,7]
[381479874,1756230682845,-726.7,0.00027397,5]
[381479875,1756230682857,-2954.18,0.00027397,5]
[381479876,1756230682866,-932.17,0.00027397,5]
[381479877,1756230682880,-151.0,0.00027397,7]
[381479878,1756230682892,-777.25,0.00027397,5]
[381479879,1756230682902,-182.378069,0.00027397,7]
[381479880,1756230682911,-1613.60652,0.00027397,7]
[381479881,1756230682923,-400.0,0.00027397,5]
[381479882,1756230682934,-810.82,0.00027397,5]
[381479883,1756230682946,-674.55,0.00027397,5]
[381479884,1756230682955,-1613.60652,0.00027397,7]
[381479885,1756230682965,-180.876898,0.00027397,7]
[381479886,1756230682975,-1613.60652,0.00027397,7]
[381479887,1756230682985,-151.0,0.00027397,7]
[381479888,1756230682994,-545.148881,0.00027397,7]
[381479889,1756230683004,-180.876898,0.00027397,7]
[381479890,1756230683014,-1003.96199,0.00027397,7]
[381479891,1756230683025,-400.0,0.00027397,5]
[381479892,1756230683034,-545.148881,0.00027397,7]
[381479893,1756230683044,-299.21862,0.00027397,7]
[381479894,1756230683054,-1613.60652,0.00027397,7]
[381479895,1756230683063,-793.535749,0.00027397,7]
[381479896,1756230683073,-180.876898,0.00027397,7]
[381479897,1756230683083,-1003.96199,0.00027397,7]
[381479898,1756230683093,-400.0,0.00027397,5]
[381479899,1756230683103,-545.148881,0.00027397,7]
[381479900,1756230683113,-400.0,0.00027397,5]
[381479901,1756230683123,-793.535749,0.00027397,7]
[381479902,1756230683134,-524.65,0.00027397,5]
[381479903,1756230683144,-180.876898,0.00027397,7]
[381479904,1756230683154,-1003.96199,0.00027397,7]
[381479905,1756230683163,-894.99,0.00027397,5]
[381479906,1756230683173,-610.96,0.00027397,5]
[381479907,1756230683183,-433.22,0.00027397,5]
[381479908,1756230683196,-400.0,0.00027397,5]
[381479909,1756230683206,-545.148881,0.00027397,7]
[381479910,1756230683216,-793.535749,0.00027397,7]
[381479911,1756230683226,-1276.0,0.00027397,5]
[381479912,1756230683236,-1003.96199,0.00027397,7]
[381479913,1756230683246,-705.71,0.00027397,5]
[381479914,1756230683256,-1048.88,0.00027397,5]
[381479915,1756230683267,-916.09,0.00027397,5]
[381479916,1756230683278,-635.0,0.00027397,5]
[381479917,1756230683288,-208.205594,0.00027397,7]
[381479918,1756230683299,-793.535749,0.00027397,7]
[381479919,1756230683309,-208.205594,0.00027397,7]
[381479920,1756230683319,-400.0,0.00027397,5]
[381479921,1756230683329,-735.88,0.00027397,5]
[381479922,1756230683339,-400.0,0.00027397,5]
[381479923,1756230683351,-586.32,0.00027397,5]
[381479924,1756230683361,-1476.54,0.00027397,5]
[381479925,1756230683370,-420.01,0.00027397,5]
[381479926,1756230683380,-208.205594,0.00027397,7]
[381479927,1756230683390,-1424.15,0.00027397,5]
[381479928,1756230683401,-711.61,0.00027397,5]
[381479929,1756230683411,-865.15,0.00027397,5]
[381479930,1756230683420,-400.0,0.00027397,5]
[381479931,1756230683430,-208.205594,0.00027397,7]
[381479932,1756230683443,-400.0,0.00027397,5]
[381479933,1756230683453,-400.0,0.00027397,5]
[381479934,1756230683462,-400.0,0.00027397,5]
[381479935,1756230683472,-657.69,0.00027397,5]
[381479936,1756230683482,-2547.01,0.00027397,5]
[381479937,1756230683492,-569.85,0.00027397,5]
[381479938,1756230683501,-924.7,0.00027397,5]
[381479939,1756230683512,-1447.41,0.00027397,5]
[381479940,1756230683522,-400.0,0.00027397,5]
[381479941,1756230683532,-195.941037,0.00027397,7]
[381479942,1756230683542,-1186.06,0.00027397,5]
[381479943,1756230683551,-947.0,0.00027397,5]
[381479944,1756230683561,-1125.16,0.00027397,5]
[381479945,1756230683571,-1017.63,0.00027397,5]
[381479946,1756230683581,-195.941037,0.00027397,7]
[381479947,1756230683590,-509.43,0.00027397,5]
[381479948,1756230683599,-151.0,0.00027397,7]
[381479949,1756230683609,-629.18,0.00027397,5]
[381479950,1756230683838,-1490.01,0.00027397,5]
[381479951,1756230683880,-1054.6,0.00027397,5]
[381479952,1756230683890,-195.941037,0.00027397,7]
[381479953,1756230683899,-516.44,0.00027397,5]
[381479954,1756230683909,-151.0,0.00027397,7]
[381479955,1756230683918,-400.0,0.00027397,5]
[381479956,1756230683928,-151.0,0.00027397,7]
[381479957,1756230683939,-1009.65,0.00027397,5]
[381479958,1756230683949,-195.941037,0.00027397,7]
[381479959,1756230683959,-682.69,0.00027397,5]
[381479960,1756230683968,-810.92,0.00027397,5]
[381479961,1756230683978,-883.73,0.00027397,5]
[381479962,1756230683987,-1283.33,0.00027397,5]
[381479963,1756230683997,-1591.74,0.00027397,5]
[381479964,1756230684007,-817.88,0.00027397,5]
[381479965,1756230684017,-657.14,0.00027397,5]
[381479966,1756230684027,-559.69,0.00027397,5]
[381479967,1756230684036,-400.0,0.00027397,5]
[381479968,1756230684046,-400.0,0.00027397,5]
[381479969,1756230684055,-434.49,0.00027397,5]
[381479970,1756230684064,-543.23,0.00027397,5]
[381479971,1756230684074,-839.27,0.00027397,5]
[381479972,1756230684083,-694.48,0.00027397,5]
[381479973,1756230684092,-400.0,0.00027397,5]
[381479974,1756230684102,-1164.11,0.00027397,5]
[381479975,1756230684111,-400.0,0.00027397,5]
[381479976,1756230684121,-151.0,0.00027397,7]
[381479977,1756230684130,-455.096171,0.00027397,7]
[381479978,1756230684139,-400.0,0.00027397,5]
[381479979,1756230684148,-455.096171,0.00027397,7]
[381479980,1756230684157,-2471.18,0.00027397,5]
[381479981,1756230684166,-735.71,0.00027397,5]
[381479982,1756230684176,-923.85,0.00027397,5]
[381479983,1756230684186,-151.0,0.00027397,7]
[381479984,1756230684196,-455.096171,0.00027397,7]
[381479985,1756230684205,-602.76,0.00027397,5]
[381479986,1756230684215,-151.0,0.00027397,7]
[381479987,1756230684224,-455.096171,0.00027397,7]
[381479988,1756230684240,-151.0,0.00027397,7]
[381479989,1756230684249,-400.0,0.00027397,5]
[381479990,1756230684259,-151.0,0.00027397,7]
[381479991,1756230684269,-884.464595,0.00027397,7]
[381479992,1756230684279,-1015.23,0.00027397,5]
[381479993,1756230684288,-400.0,0.00027397,5]
[381479994,1756230684298,-467.1733595,0.00027397,5]
[381479995,1756230684307,-1297.06,0.00027397,5]
[381479996,1756230684317,-400.0,0.00027397,5]
[381479997,1756230684327,-151.0,0.00027397,7]
[381479998,1756230684336,-151.0,0.00027397,7]
[381479999,1756230684346,-1022.18,0.00027397,5]
[381480000,1756230684355,-401.01895961,0.00027397,5]
[381480001,1756230684365,-884.464595,0.00027397,7]
[381480002,1756230684374,-413.82,0.00027397,5]
[381480003,1756230684383,-400.0,0.00027397,5]
[381480004,1756230684393,-400.0,0.00027397,5]
[381480005,1756230684403,-301.737078,0.00027397,7]
[381480006,1756230684412,-435.62,0.00027397,5]
[381480007,1756230684422,-400.0,0.00027397,5]
[381480008,1756230684431,-677.17,0.00027397,5]
[381480009,1756230684441,-481.79,0.00027397,5]
[381480010,1756230684451,-869.43,0.00027397,5]
[381480011,1756230684460,-884.464595,0.00027397,7]
[381480012,1756230684470,-400.0,0.00027397,5]
[381480013,1756230684479,-301.737078,0.00027397,7]
[381480014,1756230684488,-151.0,0.00027397,7]
[381480015,1756230684498,-1587.32,0.00027397,5]
[381480016,1756230684507,-230.826304,0.00027397,7]
[381480017,1756230684517,-400.0,0.00027397,5]
[381480018,1756230684526,-400.0,0.00027397,5]
[381480019,1756230684535,-404.82,0.00027397,5]
[381480020,1756230684545,-884.464595,0.00027397,7]
[381480021,1756230684554,-151.0,0.00027397,7]
[381480022,1756230684563,-230.826304,0.00027397,7]
[381480023,1756230684573,-1419.4,0.00027397,5]
[381480024,1756230684582,-795.96,0.00027397,5]
[381480025,1756230684592,-400.0,0.00027397,5]
[381480026,1756230684602,-400.0,0.00027397,5]
[381480027,1756230684611,-230.826304,0.00027397,7]
[381480028,1756230684621,-275.0010199,0.00027397,5]
[381480029,1756230684631,-400.0,0.00027397,5]
[381480030,1756230684640,-1337.38,0.00027397,5]
[381480031,1756230684656,-400.0,0.00027397,5]
[381480032,1756230684668,-1193.06,0.00027397,5]
[381480033,1756230684678,-643.48,0.00027397,5]
[381480034,1756230684687,-1262.91,0.00027397,5]
[381480035,1756230684697,-400.0,0.00027397,5]
[381480036,1756230684706,-2117.687934,0.00027397,7]
[381480037,1756230684715,-1405.96,0.00027397,5]
[381480038,1756230684725,-1694.19,0.00027397,5]
[381480039,1756230684735,-301.737078,0.00027397,7]
[381480040,1756230684746,-230.826304,0.00027397,7]
[381480041,1756230684755,-400.0,0.00027397,5]
[381480042,1756230684764,-2117.687934,0.00027397,7]
[381480043,1756230684774,-301.737076,0.00027397,7]
[381480044,1756230684783,-847.69,0.00027397,5]
[381480045,1756230684793,-1265.35,0.00027397,5]
[381480046,1756230684803,-837.85,0.00027397,5]
[381480047,1756230684812,-1432.19,0.00027397,5]
[381480048,1756230684822,-1066.71,0.00027397,5]
[381480049,1756230684831,-1337.65,0.00027397,5]
[381480050,1756230684841,-2117.687934,0.00027397,7]
[381480051,1756230684851,-152.495092,0.00027397,7]
[381480052,1756230684861,-400.0,0.00027397,5]
[381480053,1756230684871,-535.867484,0.00027397,7]
[381480054,1756230684880,-2117.687943,0.00027397,7]
[381480055,1756230684890,-983.38,0.00027397,5]
[381480056,1756230684899,-2638.84,0.00027397,5]
[381480057,1756230684908,-152.495092,0.00027397,7]
[381480058,1756230684918,-448.3,0.00027397,5]
[381480059,1756230684928,-510.88,0.00027397,5]
[381480060,1756230684939,-393.87948693,0.00027397,5]
[381480061,1756230684949,-1012.644171,0.00027397,7]
[381480062,1756230684958,-535.867484,0.00027397,7]
[381480063,1756230684968,-1419.37,0.00027397,5]
[381480064,1756230684978,-152.495092,0.00027397,7]
[381480065,1756230684987,-1012.644171,0.00027397,7]
[381480066,1756230684996,-151.0,0.00027397,7]
[381480067,1756230685006,-535.867484,0.00027397,7]
[381480068,1756230685015,-1378.39,0.00027397,5]
[381480069,1756230685024,-1097.19,0.00027397,5]
[381480070,1756230685034,-401.27309625,0.00027397,5]
[381480071,1756230685043,-152.495082,0.00027397,7]
[381480072,1756230685053,-1012.644171,0.00027397,7]
[381480073,1756230685063,-866.21,0.00027397,5]
[381480074,1756230685072,-535.867486,0.00027397,7]
[381480075,1756230685084,-436.05,0.00027397,5]
[381480076,1756230685093,-968.52,0.00027397,5]
[381480077,1756230685103,-1097.27,0.00027397,5]
[381480078,1756230685112,-151.0,0.00027397,7]
[381480079,1756230685121,-151.0,0.00027397,7]
[381480080,1756230685130,-400.0,0.00027397,5]
[381480081,1756230685140,-1012.644164,0.00027397,7]
[381480082,1756230685149,-158.024936,0.00027397,7]
[381480083,1756230685159,-400.0,0.00027397,5]
[381480084,1756230685168,-400.0,0.00027397,5]
[381480085,1756230685177,-168.90860476,0.00027397,5]
[381480086,1756230685189,-376.020996,0.00027397,7]
[381480087,1756230685199,-158.024936,0.00027397,7]
[381480088,1756230685209,-400.0,0.00027397,5]
[381480089,1756230685219,-898.9,0.00027397,5]
[381480090,1756230685229,-400.0,0.00027397,5]
[381480091,1756230685239,-400.0,0.00027397,5]
[381480092,1756230685248,-1054.02,0.00027397,5]
[381480093,1756230685258,-894.21,0.00027397,5]
[381480094,1756230685268,-486.16,0.00027397,5]
[381480095,1756230685277,-158.024936,0.00027397,7]
[381480096,1756230685286,-376.020996,0.00027397,7]
[381480097,1756230685296,-400.0,0.00027397,5]
[381480098,1756230685306,-2351.0,0.00027397,5]
[381480099,1756230685315,-701.738346,0.00027397,7]
[381480100,1756230685325,-158.024932,0.00027397,7]
[381480101,1756230685334,-400.0,0.00027397,5]
[381480102,1756230685343,-376.020996,0.00027397,7]
[381480103,1756230685353,-400.0,0.00027397,5]
[381480104,1756230685363,-990.16,0.00027397,5]
[381480105,1756230685373,-400.0,0.00027397,5]
[381480106,1756230685382,-701.738346,0.00027397,7]
[381480107,1756230685392,-376.021001,0.00027397,7]
[381480108,1756230685401,-701.738346,0.00027397,7]
[381480109,1756230685411,-151.0,0.00027397,7]
[381480110,1756230685421,-708.23,0.00027397,5]
[381480111,1756230685433,-400.0,0.00027397,5]
[381480112,1756230685446,-400.0,0.00027397,5]
[381480113,1756230685455,-812.56,0.00027397,5]
[381480114,1756230685466,-701.738336,0.00027397,7]
[381480115,1756230685476,-1481.93,0.00027397,5]
[381480116,1756230685486,-151.0,0.00027397,7]
[381480117,1756230685496,-400.0,0.00027397,5]
[381480118,1756230685506,-478.340523,0.00027397,7]
[381480119,1756230685515,-1309.05,0.00027397,5]
[381480120,1756230685525,-400.0,0.00027397,5]
[381480121,1756230685535,-12576.35,0.00027397,5]
[381480122,1756230685545,-157.800588,0.00027397,7]
[381480123,1756230685554,-400.0,0.00027397,5]
[381480124,1756230685565,-752.61,0.00027397,5]
[381480125,1756230685574,-478.340523,0.00027397,7]
[381480126,1756230685584,-400.0,0.00027397,5]
[381480127,1756230685593,-151.0,0.00027397,7]
[381480128,1756230685603,-157.800588,0.00027397,7]
[381480129,1756230685612,-716.67,0.00027397,5]
[381480130,1756230685622,-440.38,0.00027397,5]
[381480131,1756230685632,-1040.13,0.00027397,5]
[381480132,1756230685642,-1045.55,0.00027397,5]
[381480133,1756230685652,-610.13,0.00027397,5]
[381480134,1756230685664,-240.434914,0.00027397,7]
[381480135,1756230685673,-1232.14,0.00027397,5]
[381480136,1756230685683,-478.340523,0.00027397,7]
[381480137,1756230685697,-304.028626,0.00027397,7]
[381480138,1756230685706,-157.800588,0.00027397,7]
[381480139,1756230685715,-453.93,0.00027397,5]
[381480140,1756230685725,-400.0,0.00027397,5]
[381480141,1756230685735,-240.434914,0.00027397,7]
[381480142,1756230685746,-478.340514,0.00027397,7]
[381480143,1756230685755,-157.800584,0.00027397,7]
[381480144,1756230685765,-304.028626,0.00027397,7]
[381480145,1756230685774,-400.0,0.00027397,5]
[381480146,1756230685784,-956.51,0.00027397,5]
[381480147,1756230685793,-513.88,0.00027397,5]
[381480148,1756230685802,-400.0,0.00027397,5]
[381480149,1756230685811,-2716.73,0.00027397,5]
[381480150,1756230685821,-240.434914,0.00027397,7]
[381480151,1756230685830,-1004.11,0.00027397,5]
[381480152,1756230685841,-1144.57,0.00027397,5]
[381480153,1756230685850,-304.028626,0.00027397,7]
[381480154,1756230685859,-1348.02,0.00027397,5]
[381480155,1756230685868,-240.434913,0.00027397,7]
[381480156,1756230685878,-304.02863,0.00027397,7]
[381480157,1756230685887,-400.0,0.00027397,5]
[381480158,1756230685896,-400.0,0.00027397,5]
[381480159,1756230685905,-400.0,0.00027397,5]
[381480160,1756230685915,-795.95,0.00027397,5]
[381480161,1756230685924,-151.0,0.00027397,7]
[381480162,1756230685934,-720.68,0.00027397,5]
[381480163,1756230685945,-400.0,0.00027397,5]
[381480164,1756230685954,-583.37,0.00027397,5]
[381480165,1756230685963,-151.0,0.00027397,7]
[381480166,1756230685973,-1164.87,0.00027397,5]
[381480167,1756230685983,-400.0,0.00027397,5]
[381480168,1756230685992,-151.0,0.00027397,7]
[381480169,1756230686002,-400.0,0.00027397,5]
[381480170,1756230686011,-1208.11,0.00027397,5]
[381480171,1756230686020,-796.49,0.00027397,5]
[381480172,1756230686030,-1234.75,0.00027397,5]
[381480173,1756230686039,-1180.67,0.00027397,5]
[381480174,1756230686049,-321.734193,0.00027397,7]
[381480175,1756230686058,-400.0,0.00027397,5]
[381480176,1756230686068,-2365.85,0.00027397,5]
[381480177,1756230686077,-864.305514,0.00027397,7]
[381480178,1756230686086,-321.734193,0.00027397,7]
[381480179,1756230686096,-1090.57,0.00027397,5]
[381480180,1756230686105,-400.0,0.00027397,5]
[381480181,1756230686114,-725.15,0.00027397,5]
[381480182,1756230686124,-864.305514,0.00027397,7]
[381480183,1756230686133,-1204.31,0.00027397,5]
[381480184,1756230686142,-176.842673,0.00027397,7]
[381480185,1756230686151,-400.0,0.00027397,5]
[381480186,1756230686161,-400.29218528,0.00027397,2]
[381480187,1756230686170,-321.734193,0.00027397,7]
[381480188,1756230686180,-774.92,0.00027397,5]
[381480189,1756230686190,-607.03,0.00027397,5]
[381480190,1756230686200,-176.842673,0.00027397,7]
[381480191,1756230686209,-158.692368,0.00027397,7]
[381480192,1756230686219,-400.0,0.00027397,5]
[381480193,1756230686228,-400.0,0.00027397,5]
[381480194,1756230686238,-1391.48,0.00027397,5]
[381480195,1756230686247,-151.0,0.00027397,7]
[381480196,1756230686256,-1460.18,0.00027397,5]
[381480197,1756230686266,-321.734187,0.00027397,7]
[381480198,1756230686276,-949.27,0.00027397,5]
[381480199,1756230686286,-1381.91,0.00027397,5]
[381480200,1756230686295,-176.842673,0.00027397,7]
[381480201,1756230686306,-151.0,0.00027397,7]